bitfinex-derivatives/quotes_SOLF0:USTF0_20250630
["timestamp","ask_amount","ask_price","bid_price","bid_amount"]
[1751259549554,211.0,151.03,150.97,33.52]
[1751259549752,214.08529516,151.03,150.97,33.52]
[1751259549953,214.08529516,151.03,150.97,35.8578]
[1751259550150,211.0,151.03,150.98,3.08529516]
[1751259550351,218.65279516,151.09,151.02,3.08529516]
[1751259550656,5.295,151.05,151.03,33.88]
[1751259551050,218.65279516,151.09,151.03,33.88]
[1751259551342,215.5675,151.09,151.03,39.1757]
[1751259551550,3.08529516,151.08,151.03,39.1757]
[1751259552152,5.2948,151.06,151.03,33.88]
[1751259552349,5.38779516,151.11,151.04,3.08529516]
[1751259552555,3.08529516,151.1,151.03,33.88]
[1751259552750,244.88,151.13,151.03,36.96529516]
[1751259552751,211.0,151.12,151.03,36.96529516]
[1751259552950,3.08529516,151.11,151.03,36.96529516]
[1751259553658,5.2935,151.1,151.05,8.38009516]
[1751259553853,211.0,151.16,151.07,3.08529516]
[1751259554059,13.66499516,151.2,151.08,33.88]
[1751259554060,3.08529516,151.14,151.08,33.88]
[1751259554848,129.42,151.16,151.08,33.88]
[1751259555159,3.08529516,151.14,151.08,33.88]
[1751259555360,5.2928,151.12,151.08,33.88]
[1751259556159,3.08529516,151.12,151.08,33.88]
[1751259556458,340.42,151.16,151.08,33.88]
[1751259556459,3.08529516,151.1,151.08,33.88]
[1751259557055,3.08529516,151.11,151.08,33.88]
[1751259558358,5.2932,151.1,151.08,33.88]
[1751259559763,5.293,151.11,151.08,33.88]
[1751259560264,5.2932,151.1,151.08,33.88]
[1751259560464,3.08529516,151.13,151.08,33.88]
[1751259561062,214.08529516,151.13,151.08,33.88]
[1751259561364,5.2931,151.11,151.08,33.88]
[1751259561562,214.08529516,151.13,151.08,33.88]
[1751259561763,5.2926,151.12,151.08,33.88]
[1751259562163,5.2926,151.12,151.08,39.1738]
[1751259563059,214.08529516,151.13,151.08,33.88]
[1751259563565,211.0,151.13,151.08,33.88]
[1751259563765,3.08529516,151.12,151.08,33.88]
[1751259564266,211.0,151.13,151.08,33.88]
[1751259565365,5.2927,151.12,151.08,39.1737]
[1751259565566,211.0,151.13,151.08,39.1737]
[1751259566668,5.2929,151.11,151.08,39.1737]
[1751259568067,5.2933,151.1,151.08,33.88]
[1751259569369,5.293,151.11,151.08,33.88]
[1751259569967,5.2932,151.1,151.08,33.88]
[1751259574664,214.08325447,151.13,151.08,33.88]
[1751259574870,211.0,151.13,151.08,33.88]
[1751259576571,5.2928,151.12,151.08,39.1737]
[1751259577271,5.2929,151.11,151.08,39.1737]
[1751259578173,5.2926,151.12,151.08,39.1737]
[1751259579571,216.2923,151.13,151.09,5.2934]
[1751259580773,5.2925,151.12,151.09,5.2934]
[1751259581568,211.0,151.13,151.08,36.96241852]
[1751259581872,5.2927,151.12,151.08,39.1737]
[1751259582475,5.293,151.11,151.08,39.1737]
[1751259582872,5.293,151.11,151.08,33.88]
[1751259583475,211.0,151.13,151.08,39.1737]
[1751259584672,5.293,151.11,151.08,39.1737]
[1751259585877,5.2927,151.12,151.08,39.1737]
[1751259591182,216.2924,151.13,151.09,5.2933]
[1751259591482,216.2924,151.13,151.08,33.88]
[1751259591783,216.2924,151.13,151.1,5.2932]
[1751259592280,216.2924,151.13,151.09,5.2934]
[1751259594279,5.2928,151.12,151.08,39.1738]
[1751259594578,5.2928,151.12,151.08,45.32544063]
[1751259595277,5.2928,151.12,151.09,6.15164063]
[1751259601279,3.08224614,151.13,151.09,6.15164063]
[1751259601485,3.08224614,151.13,151.08,33.88]
[1751259601884,5.2934,151.1,151.08,33.88]
[1751259603988,5.2929,151.11,151.08,33.88]
[1751259604291,5.2929,151.11,151.08,40.03164063]
[1751259605382,5.2934,151.1,151.08,40.03164063]
[1751259605577,5.2934,151.1,151.08,33.88]
[1751259605989,5.2931,151.11,151.08,33.88]
[1751259612482,5.2927,151.12,151.08,39.1739]
[1751259612683,5.2927,151.12,151.08,45.32554063]
[1751259614494,5.2923,151.13,151.09,5.2935]
[1751259615088,5.2923,151.13,151.09,8.37574614]
[1751259615390,214.08224614,151.14,151.08,40.03164063]
[1751259615589,3.08224614,151.12,151.08,6.15164063]
[1751259615985,5.2936,151.09,151.08,6.15164063]
[1751259616494,5.2936,151.09,151.06,6.15164063]
[1751259617294,5.2936,151.09,151.06,11.44614063]
[1751259620999,5.2933,151.1,151.06,14.52838677]
[1751259623402,2.3669,151.13,151.06,9.23388677]
[1751259623603,5.26294614,151.14,151.08,3.08224614]
[1751259624401,5.2927,151.12,151.08,8.37604614]
[1751259624904,5.2923,151.13,151.09,38.6534]
[1751259625101,165.81369705,151.16,151.09,39.51164063]
[1751259625300,3.08224614,151.14,151.09,33.36]
[1751259626096,5.2932,151.11,151.09,33.36]
[1751259626299,3.08224614,151.14,151.09,33.36]
[1751259626801,5.2932,151.1,151.09,33.36]
[1751259644422,1.97375291,151.1,151.05,8.24273472]
[1751259644621,128.02,151.11,151.01,1.97519537]
[1751259644923,1.97519537,151.08,151.04,1.97519537]
[1751259645118,5.2943,151.07,151.04,1.97519537]
[1751259645323,1.97519537,151.08,151.04,1.97519537]
[1751259646422,5.2947,151.06,151.04,1.97519537]
[1751259647325,1.97519537,151.05,151.02,8.24273472]
[1751259647526,1.97519537,151.03,150.99,1.97519537]
[1751259647722,3.08685284,151.04,150.97,11.32958756]
[1751259647926,5.2964,151.01,150.97,11.32958756]
[1751259648127,5.2964,151.01,150.97,3.08685284]
[1751259648825,5.2968,151.0,150.97,3.08685284]
[1751259651530,3.08685284,151.04,150.96,36.26685284]
[1751259651931,5.2968,151.0,150.96,33.18]
[1751259652230,5.2968,151.0,150.97,3.08685284]
[1751259653133,5.2968,151.0,150.96,38.4778]
[1751259653330,5.2968,151.0,150.96,41.56465284]
[1751259657033,5.2968,151.0,150.96,38.4778]
[1751259657338,5.2968,151.0,150.96,41.56465284]
[1751259657535,5.2977,150.98,150.96,33.18]
[1751259657735,3.08685284,151.04,150.96,33.18]
[1751259657935,3.08685284,151.02,150.96,36.26685284]
[1751259658137,5.297,151.0,150.96,36.26685284]
[1751259658632,33.2,151.05,150.96,36.26685284]
[1751259658633,3.08685284,151.03,150.96,33.18]
[1751259658837,3.08685284,151.03,150.96,36.26685284]
[1751259659036,3.08685284,150.99,150.91,8.24273472]
[1751259659238,3.08685284,150.97,150.9,33.2]
[1751259659431,33.2,151.0,150.9,33.2]
[1751259659633,3.08685284,150.98,150.91,3.08685284]
[1751259660133,3.08685284,150.98,150.9,33.2]
[1751259660334,3.08685284,150.98,150.9,36.28685284]
[1751259661133,3.08685284,150.98,150.9,33.2]
[1751259661333,33.2,151.0,150.9,33.2]
[1751259661536,3.08685284,150.96,150.9,33.2]
[1751259661736,2.3682,151.01,150.9,36.28685284]
[1751259661937,2.3682,151.01,150.94,3.08685284]
[1751259662132,2.3682,151.01,150.95,33.2]
[1751259662337,2.2287,151.03,150.95,41.58525284]
[1751259662338,3.08685284,151.03,150.95,41.58525284]
[1751259662642,40.248,151.08,150.95,36.28685284]
[1751259662940,3.08685284,151.05,150.97,3.08685284]
[1751259663135,3.08685284,151.05,150.96,5.2981]
[1751259663446,5.2963,151.02,150.97,5.2977]
[1751259663643,5.2963,151.02,150.96,3.08685284]
[1751259664043,5.2965,151.01,150.97,33.2]
[1751259664638,5.2965,151.01,150.96,8.38495284]
[1751259664842,5.2965,151.01,150.98,33.2]
[1751259666439,5.2961,151.02,150.98,33.2]
[1751259666646,3.08685284,151.03,150.98,33.2]
[1751259666942,3.08685284,151.03,150.96,8.38495284]
[1751259667142,3.08685284,151.03,150.97,33.2]
[1751259667345,3.08685284,151.03,150.98,33.2]
[1751259667541,5.2966,151.01,150.99,33.2]
[1751259667741,5.2966,151.01,150.97,5.2978]
[1751259667942,3.08685284,151.03,150.98,40.52068557]
[1751259668237,3.08685284,151.05,150.99,6.68062693]
[1751259668441,3.08685284,151.05,150.98,42.22425284]
[1751259668638,3.08685284,151.06,150.99,6.68017249]
[1751259668840,5.2956,151.04,150.99,5.297]
[1751259669241,3.08685284,151.06,150.99,5.297]
[1751259669440,5.2953,151.04,150.99,5.297]
[1751259669643,3.08685284,151.06,150.99,5.297]
[1751259669845,3.08685284,151.06,151.0,6.68027398]
[1751259670040,3.08685284,151.06,150.98,42.22415284]
[1751259670239,3.08685284,151.06,150.99,6.68021534]
[1751259670543,5.2958,151.03,151.0,6.68021534]
[1751259670739,7.048,151.08,151.01,6.68021534]
[1751259671044,5.2954,151.04,151.02,40.52059727]
[1751259671245,5.2954,151.04,151.02,33.84]
[1751259671743,5.295,151.05,151.02,33.84]
[1751259672148,3.08685284,151.07,151.02,33.84]
[1751259672647,3.08685284,151.06,151.02,33.84]
[1751259673749,5.2953,151.04,151.02,33.84]
[1751259674842,5.2957,151.03,151.02,33.84]
[1751259675247,3.08685284,151.06,151.02,33.84]
[1751259675647,5.2955,151.04,151.02,33.84]
[1751259676251,5.2956,151.03,151.02,33.84]
[1751259678650,10.13485284,151.08,151.02,33.84]
[1751259678852,3.08685284,151.06,151.02,33.84]
[1751259679152,5.2955,151.04,151.02,33.84]
[1751259690760,5.2951,151.05,151.02,33.84]
[1751259691262,9.75268654,151.05,151.02,33.84]
[1751259691459,5.2951,151.05,151.02,33.84]
[1751259691659,9.75268654,151.05,151.02,39.136]
[1751259691956,5.2951,151.05,151.02,35.81477913]
[1751259692150,9.75268654,151.05,151.02,35.81477913]
[1751259692349,9.75268654,151.05,151.03,1.97477913]
[1751259692553,5.2951,151.05,151.03,1.97477913]
[1751259692765,9.75268654,151.05,151.03,1.97477913]
[1751259693065,5.2951,151.05,151.03,1.97477913]
[1751259693264,9.75268654,151.05,151.03,1.97477913]
[1751259693467,5.2951,151.05,151.03,1.97477913]
[1751259693759,5.2951,151.05,151.02,39.136]
[1751259694357,9.75268654,151.05,151.02,33.84]
[1751259694661,5.2951,151.05,151.02,33.84]
[1751259694963,9.75268654,151.05,151.02,33.84]
[1751259695152,5.2951,151.05,151.02,33.84]
[1751259695356,9.75268654,151.05,151.02,33.84]
[1751259695558,5.2951,151.05,151.02,33.84]
[1751259695755,9.75268654,151.05,151.02,33.84]
[1751259695960,5.2951,151.05,151.02,33.84]
[1751259696159,9.75268654,151.05,151.02,33.84]
[1751259696360,5.2951,151.05,151.02,33.84]
[1751259696564,9.75268654,151.05,151.02,33.84]
[1751259696762,5.2951,151.05,151.02,33.84]
[1751259696961,9.75268654,151.05,151.02,33.84]
[1751259697161,5.2951,151.05,151.02,33.84]
[1751259697355,9.75268654,151.05,151.02,33.84]
[1751259697556,5.2951,151.05,151.02,33.84]
[1751259697756,9.75268654,151.05,151.02,33.84]
[1751259697958,5.2954,151.04,151.02,33.84]
[1751259699367,5.2951,151.05,151.02,33.84]
[1751259699564,211.0,151.11,151.02,36.9252279]
[1751259699866,218.64886107,151.1,151.02,36.9252279]
[1751259700062,5.2944,151.07,151.03,5.2954]
[1751259700958,5.294,151.08,151.04,5.2952]
[1751259701163,9.85763317,151.08,151.04,5.2952]
[1751259701361,5.294,151.08,151.04,5.2952]
[1751259701965,5.2943,151.07,151.04,3.0852279]
[1751259702266,4.56363317,151.09,151.04,3.0852279]
[1751259702964,5.2941,151.08,151.04,8.3803279]
[1751259703166,4.56363317,151.09,151.04,8.3803279]
[1751259703566,4.56363317,151.09,151.04,3.0852279]
[1751259703567,5.2943,151.07,151.04,3.0852279]
[1751259705165,5.2943,151.07,151.05,33.54]
[1751259705367,5.294,151.08,151.05,33.54]
[1751259706469,9.85763317,151.08,151.05,33.54]
[1751259706667,9.85723317,151.09,151.05,41.9201279]
[1751259712272,4.56363317,151.08,151.05,41.9201279]
[1751259713075,4.56363317,151.08,151.06,5.2946]
[1751259713373,4.56363317,151.09,151.06,5.2946]
[1751259713571,4.56363317,151.08,151.05,36.6252279]
[1751259713775,4.56363317,151.09,151.05,36.6252279]
[1751259713972,4.56363317,151.08,151.05,36.6252279]
[1751259714173,4.56363317,151.09,151.05,36.6252279]
[1751259714374,4.56363317,151.08,151.05,41.9200279]
[1751259715275,4.56363317,151.08,151.06,5.2946]
[1751259715574,4.56363317,151.09,151.06,5.2946]
[1751259715774,4.56363317,151.08,151.07,1.97355561]
[1751259715974,4.56363317,151.09,151.07,1.97355561]
[1751259716177,4.56363317,151.08,151.07,1.97355561]
[1751259716378,5.2936,151.09,151.07,1.97355561]
[1751259717474,5.2936,151.09,151.05,38.8348]
[1751259717680,5.2936,151.09,151.07,1.97355561]
[1751259723388,5.2936,151.09,151.05,38.8348]
[1751259723592,5.2936,151.09,151.07,1.97355561]
[1751259724093,211.0,151.1,151.08,1.97355561]
[1751259724286,211.0,151.1,151.05,33.54]
[1751259724487,211.0,151.1,151.07,1.97355561]
[1751259725190,128.34,151.12,151.09,1.97355561]
[1751259725396,4.38635527,151.11,151.09,35.51355561]
[1751259725592,1.97355561,151.12,151.09,33.54]
[1751259725893,5.2931,151.11,151.09,33.54]
[1751259726096,6.35991088,151.12,151.09,33.54]
[1751259726489,5.2928,151.11,151.09,33.54]
[1751259727793,1.97355561,151.1,151.08,33.54]
[1751259729494,5.2933,151.1,151.08,33.54]
[1751259731097,4.38635527,151.11,151.09,7.26705561]
[1751259731294,4.38635527,151.11,151.1,1.97355561]
[1751259731499,211.0,151.12,151.1,1.97355561]
[1751259731698,211.0,151.12,151.11,1.97355561]
[1751259731888,215.38770049,151.12,151.11,1.97355561]
[1751259732295,211.0,151.12,151.11,1.97355561]
[1751259734397,162.73145091,151.16,151.11,1.97355561]
[1751259734599,211.0,151.19,151.09,2.302]
[1751259734600,4.38660144,151.15,151.14,1.97355561]
[1751259734803,6.36015705,151.16,151.13,1.97355561]
[1751259735003,5.2917,151.15,151.13,1.97355561]
[1751259735800,5.2918,151.14,151.13,1.97355561]
[1751259735996,1.97355561,151.14,151.12,33.32]
[1751259736398,4.38660144,151.15,151.12,33.32]
[1751259736598,128.4,151.17,151.14,1.97355561]
[1751259736599,4.38660144,151.16,151.14,1.97355561]
[1751259736902,5.2913,151.16,151.14,1.97355561]
[1751259737094,5.2913,151.16,151.13,1.97355561]
[1751259738297,5.2913,151.16,151.14,1.97355561]
[1751259738500,5.2913,151.16,151.15,1.97355561]
[1751259738900,5.2913,151.16,151.14,1.97355561]
[1751259740599,5.2914,151.15,151.13,1.97355561]
[1751259740802,1.97355561,151.17,151.13,1.97355561]
[1751259741007,4.38660144,151.18,151.14,1.97355561]
[1751259741205,1.97355561,151.17,151.14,1.97355561]
[1751259741407,5.2913,151.16,151.14,1.97355561]
[1751259743407,5.2914,151.15,151.14,1.97355561]
[1751259750314,5.2914,151.15,151.12,38.6125]
[1751259750315,2.2003,151.22,151.12,33.32]
[1751259750521,1.97355561,151.18,151.14,1.97355561]
[1751259750815,5.291,151.17,151.14,1.97355561]
[1751259751114,1.97355561,151.19,151.15,1.97355561]
[1751259751317,1.97355561,151.2,151.16,1.97355561]
[1751259751515,4.5303,151.21,151.18,1.97355561]
[1751259751817,2.1949,151.21,151.18,1.97355561]
[1751259752014,5.2894,151.21,151.18,1.97355561]
[1751259752219,5.2894,151.21,151.19,1.97355561]
[1751259753012,5.2894,151.21,151.2,1.97355561]
[1751259753324,175.33193374,151.25,151.2,35.29355561]
[1751259753630,1.97355561,151.24,151.21,1.97355561]
[1751259753824,1.97355561,151.24,151.2,33.32]
[1751259753825,5.2889,151.23,151.2,33.32]
[1751259754518,175.33193374,151.25,151.2,33.32]
[1751259754725,3.07811239,151.24,151.2,33.32]
[1751259754918,5.2895,151.21,151.19,33.32]
[1751259760724,5.2897,151.2,151.19,33.32]
[1751259761027,8.36781239,151.2,151.19,33.32]
[1751259761925,5.2901,151.19,151.17,33.22]
[1751259763928,5.2901,151.19,151.18,33.22]
[1751259764731,5.2898,151.2,151.18,33.22]
[1751259766728,5.2894,151.21,151.18,38.5103]
[1751259767231,3.07811239,151.24,151.18,38.5103]
[1751259767431,5.2892,151.22,151.18,38.5103]
[1751259768433,5.2892,151.22,151.18,41.58841239]
[1751259770433,5.2892,151.22,151.19,5.29]
[1751259771434,5.2888,151.23,151.19,5.29]
[1751259773036,5.2884,151.24,151.2,8.36781239]
[1751259775837,5.2884,151.24,151.22,1.96970499]
[1751259776038,5.2884,151.24,151.22,35.18970499]
[1751259776535,175.33193374,151.25,151.22,35.18970499]
[1751259776838,180.62003374,151.25,151.22,35.18970499]
[1751259777033,5.2881,151.25,151.22,35.18970499]
[1751259777636,5.2885,151.24,151.22,33.22]
[1751259778041,5.2885,151.24,151.22,35.18970499]
[1751259780340,5.2881,151.25,151.22,40.47870499]
[1751259780735,7.25780499,151.25,151.22,40.47870499]
[1751259781541,5.2881,151.25,151.22,40.47870499]
[1751259784347,1.96970499,151.25,151.22,33.22]
[1751259784536,1.96970499,151.24,151.22,33.22]
[1751259785645,5.2886,151.23,151.22,33.22]
[1751259786645,5.2886,151.23,151.18,2.2859]
[1751259786646,1.96970499,151.23,151.18,1.96970499]
[1751259786853,1.96970499,151.21,151.19,33.22]
[1751259787547,1.96970499,151.2,151.19,33.22]
[1751259788141,5.2897,151.2,151.19,33.22]
[1751259788447,1.96970499,151.21,151.19,33.22]
[1751259789652,5.2897,151.2,151.19,33.22]
[1751259790950,7.25940499,151.2,151.19,33.22]
[1751259792147,5.2897,151.2,151.19,33.22]
[1751259792347,5.2897,151.2,151.17,7.26040499]
[1751259792548,5.2897,151.2,151.18,33.12]
[1751259792749,5.2897,151.2,151.18,35.08970499]
[1751259792948,7.25940499,151.2,151.17,1.96970499]
[1751259793151,7.25940499,151.2,151.18,33.12]
[1751259794545,11.63030498,151.2,151.18,33.12]
[1751259794745,7.25940499,151.2,151.18,33.12]
[1751259795554,5.2894,151.21,151.18,40.38000499]
[1751259795949,5.2894,151.21,151.19,1.96970499]
[1751259796349,5.2891,151.22,151.19,7.25970499]
[1751259796555,1.96970499,151.25,151.21,1.96970499]
[1751259797145,5.2888,151.23,151.21,1.96970499]
[1751259797953,5.2884,151.24,151.22,38.3946248]
[1751259798253,1.96970499,151.27,151.23,5.2746248]
[1751259798451,5.2879,151.26,151.24,1.96970499]
[1751259799053,5.2879,151.25,151.24,1.96970499]
[1751259799763,5.2879,151.25,151.22,41.48573697]
[1751259799963,5.2879,151.25,151.23,3.30423497]
[1751259800163,5.2879,151.25,151.22,41.48573697]
[1751259800458,5.2879,151.25,151.23,3.30404948]
[1751259800658,5.2879,151.25,151.22,41.48573697]
[1751259800860,5.2879,151.25,151.23,3.30404948]
[1751259801059,5.2879,151.25,151.22,36.19693697]
[1751259801257,5.2883,151.24,151.23,3.30400852]
[1751259801762,5.2883,151.24,151.22,33.12]
[1751259802763,5.2881,151.25,151.23,3.3038889]
[1751259802962,5.2881,151.25,151.22,33.12]
[1751259803162,5.2881,151.25,151.23,3.30035464]
[1751259803461,5.2881,151.25,151.22,33.12]
[1751259803662,5.2881,151.25,151.23,3.30025576]
[1751259803960,5.2881,151.25,151.22,33.12]
[1751259804160,5.2881,151.25,151.23,3.30025576]
[1751259804360,5.2881,151.25,151.22,33.12]
[1751259804563,5.2881,151.25,151.23,3.30018572]
[1751259804758,5.2881,151.25,151.22,38.4089]
[1751259804958,5.2881,151.25,151.23,3.30018572]
[1751259805258,5.2881,151.25,151.22,38.4089]
[1751259805457,5.2881,151.25,151.23,3.30014396]
[1751259805658,5.2881,151.25,151.22,38.4089]
[1751259805860,5.2881,151.25,151.23,3.30014396]
[1751259806056,5.2881,151.25,151.22,38.4089]
[1751259806260,5.2881,151.25,151.23,3.30022813]
[1751259806461,5.2881,151.25,151.22,38.4089]
[1751259806662,5.2881,151.25,151.23,3.30020292]
[1751259806862,5.2881,151.25,151.22,38.4089]
[1751259807062,5.2881,151.25,151.23,3.30020292]
[1751259807257,5.46293697,151.3,151.23,5.2886]
[1751259807565,5.46293697,151.3,151.24,3.29842931]
[1751259807765,5.2878,151.26,151.22,38.4089]
[1751259807966,5.2878,151.26,151.23,6.37536628]
[1751259808164,5.2878,151.26,151.24,3.29842931]
[1751259808465,5.2878,151.26,151.23,8.36533697]
[1751259808659,5.2878,151.26,151.24,3.2983547]
[1751259808855,5.2878,151.26,151.23,3.07693697]
[1751259809157,5.2878,151.26,151.24,3.2983547]
[1751259809364,5.2878,151.26,151.23,3.07693697]
[1751259809566,5.2878,151.26,151.24,3.29833142]
[1751259809766,5.2878,151.26,151.23,3.07693697]
[1751259809967,5.2878,151.26,151.24,3.29833142]
[1751259810162,5.2878,151.26,151.23,3.07693697]
[1751259810357,5.2878,151.26,151.24,3.29850644]
[1751259810560,5.2878,151.26,151.23,8.36553697]
[1751259810763,5.2874,151.27,151.24,3.29836142]
[1751259810957,5.2874,151.27,151.23,8.36553697]
[1751259811161,5.46293697,151.3,151.24,8.58656169]
[1751259811359,5.2871,151.28,151.25,3.29821553]
[1751259811562,5.2871,151.28,151.24,5.2882]
[1751259811762,5.2871,151.28,151.25,3.29821553]
[1751259811968,5.2871,151.28,151.24,5.2882]
[1751259812167,5.2871,151.28,151.25,3.29821553]
[1751259812468,5.2871,151.28,151.24,5.2882]
[1751259812667,5.2871,151.28,151.25,3.29783669]
[1751259812864,5.2871,151.28,151.24,5.2882]
[1751259813071,5.2871,151.28,151.25,3.2978363]
[1751259813262,5.2871,151.28,151.24,5.2882]
[1751259813466,5.2871,151.28,151.25,3.29739182]
[1751259813670,5.2871,151.28,151.24,5.2882]
[1751259813972,5.2871,151.28,151.25,3.29739182]
[1751259814171,5.2871,151.28,151.26,3.29739182]
[1751259814365,5.2871,151.28,151.24,5.2882]
[1751259814564,5.2871,151.28,151.25,3.29655697]
[1751259814765,5.2871,151.28,151.26,3.29655697]
[1751259814965,5.2871,151.28,151.27,3.29655697]
[1751259815167,5.2866,151.29,151.27,3.29655697]
[1751259815367,5.2866,151.29,151.26,36.17693697]
[1751259815675,5.2866,151.29,151.27,3.29541265]
[1751259815970,5.2866,151.29,151.26,36.17693697]
[1751259816172,5.2866,151.29,151.27,3.29541149]
[1751259816374,5.2866,151.29,151.26,36.17693697]
[1751259816574,5.2866,151.29,151.27,3.29459544]
[1751259816883,3.07693697,151.28,151.21,6.17329379]
[1751259817066,3.07693697,151.28,151.23,33.1]
[1751259817373,5.2879,151.26,151.24,3.29466179]
[1751259817669,5.2879,151.26,151.23,33.1]
[1751259817864,5.2879,151.26,151.24,3.28950153]
[1751259818062,5.2879,151.26,151.23,33.1]
[1751259818263,5.2879,151.26,151.24,3.28935111]
[1751259818464,5.2879,151.26,151.23,33.1]
[1751259818665,5.2879,151.26,151.24,3.28930642]
[1751259818871,5.2879,151.26,151.23,33.1]
[1751259819071,5.2879,151.26,151.24,3.28930642]
[1751259819369,5.2879,151.26,151.23,33.1]
[1751259819667,5.2879,151.26,151.24,3.28913057]
[1751259819871,5.2879,151.26,151.25,3.28913057]
[1751259824383,186.14418437,151.31,151.25,3.28913057]
[1751259824577,3.07693697,151.29,151.23,33.1]
[1751259824869,5.2871,151.28,151.25,5.2877]
[1751259825071,5.2871,151.28,151.26,3.28621939]
[1751259825265,5.2871,151.28,151.27,3.28621939]
[1751259827879,5.2871,151.28,151.25,3.07693697]
[1751259828075,186.14418437,151.31,151.26,3.28401715]
[1751259828076,5.2867,151.29,151.26,3.28401715]
[1751259828270,5.2867,151.29,151.25,8.36483697]
[1751259828579,5.2871,151.28,151.26,3.27824879]
[1751259828783,5.2871,151.28,151.25,3.07693697]
[1751259829079,5.2871,151.28,151.26,3.27824879]
[1751259829275,5.2871,151.28,151.25,3.07693697]
[1751259829480,5.2871,151.28,151.26,3.27797082]
[1751259829677,5.2871,151.28,151.25,3.07693697]
[1751259829876,5.2871,151.28,151.26,3.27776499]
[1751259830181,5.2871,151.28,151.25,8.36483697]
[1751259830375,5.2871,151.28,151.26,3.27756687]
[1751259830574,5.2871,151.28,151.25,8.36483697]
[1751259830775,5.2871,151.28,151.26,3.27733469]
[1751259830970,5.2871,151.28,151.25,8.36483697]
[1751259831170,5.2866,151.29,151.26,3.27733469]
[1751259831376,5.2866,151.29,151.25,8.36483697]
[1751259831577,5.2866,151.29,151.26,3.27696891]
[1751259831777,5.2869,151.28,151.25,8.36483697]
[1751259832077,5.2869,151.28,151.26,3.27696891]
[1751259832280,5.2869,151.28,151.25,8.36483697]
[1751259832576,5.2869,151.28,151.26,3.27699748]
[1751259832776,5.2869,151.28,151.25,8.36483697]
[1751259833077,5.2869,151.28,151.26,3.27699748]
[1751259833279,5.2869,151.28,151.25,8.36483697]
[1751259833684,5.2869,151.28,151.26,3.27715954]
[1751259833980,5.2869,151.28,151.25,8.36483697]
[1751259834180,5.2869,151.28,151.26,3.27890695]
[1751259834372,5.2869,151.28,151.25,8.36483697]
[1751259834573,5.2869,151.28,151.26,3.279148]
[1751259834777,5.2869,151.28,151.25,8.36483697]
[1751259834985,5.2869,151.28,151.26,3.279148]
[1751259835183,5.2869,151.28,151.25,8.36483697]
[1751259835379,5.2869,151.28,151.26,3.27961156]
[1751259835580,5.2869,151.28,151.25,8.36483697]
[1751259835780,5.2869,151.28,151.26,3.27961156]
[1751259835980,5.2869,151.28,151.25,8.36483697]
[1751259836181,5.2869,151.28,151.26,3.27961156]
[1751259836482,5.2869,151.28,151.25,8.36483697]
[1751259836682,5.2869,151.28,151.26,3.28017914]
[1751259836883,5.2869,151.28,151.25,8.36483697]
[1751259837084,5.2869,151.28,151.26,3.28017914]
[1751259837281,5.2869,151.28,151.25,8.36483697]
[1751259837486,5.2872,151.27,151.26,3.28086078]
[1751259855007,5.287,151.28,151.26,3.28086078]
[1751259855207,211.0,151.3,151.27,3.28086078]
[1751259855403,211.0,151.3,151.28,3.28086078]
[1751259855705,5.2867,151.29,151.26,7.25650764]
[1751259855905,5.2867,151.29,151.27,3.29491762]
[1751259856103,5.2867,151.29,151.28,3.29491762]
[1751259860712,5.2862,151.3,151.28,5.26392526]
[1751259861009,5.2862,151.3,151.29,3.29491762]
[1751259864105,193.39909201,151.31,151.29,3.29491762]
[1751259864302,193.39909201,151.31,151.3,3.29491762]
[1751259864707,191.43008437,151.31,151.3,3.29491762]
[1751259864913,193.39909201,151.31,151.3,3.29491762]
[1751259865115,191.43008437,151.31,151.3,3.29491762]
[1751259865314,186.14418437,151.31,151.3,3.29491762]
[1751259866616,191.42998437,151.31,151.3,3.29491762]
[1751259879827,193.39899201,151.31,151.3,3.29491762]